bitfinex/quotes_ETHUSD_20241001
["timestamp","ask_amount","ask_price","bid_price","bid_amount"]
[1727810835824,0.8247,2509.0,2508.4,4.7839]
[1727810835825,4.78324,2508.8,2508.4,4.7839]
[1727810836024,5.6076,2509.0,2508.5,4.78365]
[1727810836255,10.39051,2509.0,2508.5,4.78365]
[1727810836455,0.8247,2509.0,2508.5,4.78363]
[1727810836657,5.60759,2509.0,2508.5,4.78363]
[1727810836855,0.8247,2509.0,2508.7,4.78334]
[1727810837160,0.8247,2509.0,2508.7,4.78326]
[1727810837344,20.17700897,2509.3,2508.8,4.78297]
[1727810837646,20.17700897,2509.3,2508.9,4.78295]
[1727810837853,19.40660897,2509.3,2508.9,0.07971558]
[1727810838021,1.6647598,2509.8,2509.1,0.7598]
[1727810838230,21.07136877,2510.1,2509.6,4.7816]
[1727810838422,8.12810639,2510.1,2509.7,4.78141]
[1727810838622,4.78079,2510.1,2509.7,4.78141]
[1727810838820,4.78079,2510.1,2509.4,9.56376]
[1727810839020,4.78079,2510.1,2509.6,4.7815]
[1727810839230,2.4235598,2510.2,2509.7,4.78135]
[1727810839456,2.4235598,2510.2,2509.9,4.78094]
[1727810839457,0.7588,2510.2,2509.9,4.78094]
[1727810840261,0.7722,2510.4,2509.9,5.259034]
[1727810840556,5.55231,2510.4,2509.9,0.478094]
[1727810840762,5.55233,2510.4,2509.8,4.78124]
[1727810840908,5.55233,2510.4,2509.9,4.78098]
[1727810841362,5.55233,2510.4,2510.0,4.78079]
[1727810841638,5.55233,2510.4,2510.1,4.78066]
[1727810841639,0.7722,2510.4,2510.1,4.78066]
[1727810842052,0.7722,2510.4,2510.0,4.78086]
[1727810842826,5.55242,2510.4,2509.9,4.78106]
[1727810844451,4.78041,2510.3,2509.8,4.78112]
[1727810844663,4.78041,2510.3,2509.6,4.78148]
[1727810844664,4.78061,2510.2,2509.6,4.78148]
[1727810844818,4.78061,2510.2,2509.7,4.78144]
[1727810845558,4.7806,2510.2,2509.6,4.78148]
[1727810846061,5.55241,2510.4,2509.8,4.78117]
[1727810846062,4.78031,2510.3,2509.8,4.78117]
[1727810846263,4.78049,2510.2,2509.7,4.78142]
[1727810846480,4.78035,2510.3,2509.8,4.78114]
[1727810847778,4.78035,2510.3,2509.9,4.78105]
[1727810847982,4.78035,2510.3,2509.8,4.78115]
[1727810847983,4.78038,2510.3,2509.8,4.78115]
[1727810848362,0.7722,2510.4,2510.0,4.78072]
[1727810848580,0.7722,2510.4,2509.9,4.78104]
[1727810848581,5.55233,2510.4,2509.9,4.78104]
[1727810848780,5.55233,2510.4,2510.0,4.78076]
[1727810848781,0.7722,2510.4,2510.0,4.78076]
[1727810849081,0.7722,2510.4,2510.2,4.78048]
[1727810850198,0.7722,2510.4,2510.1,4.78068]
[1727810850415,0.7722,2510.4,2510.1,4.78058]
[1727810850757,0.7722,2510.4,2509.9,4.78093]
[1727810850758,5.55232,2510.4,2510.0,4.78083]
[1727810851702,5.55232,2510.4,2509.9,9.56191]
[1727810852072,4.78036,2510.3,2509.9,4.78093]
[1727810852271,4.78036,2510.3,2509.8,4.78124]
[1727810852489,3.2680929,2510.4,2509.2,0.8204]
[1727810852490,0.7848,2509.9,2509.2,0.8204]
[1727810852688,5.56602,2509.9,2509.3,0.07969633]
[1727810853005,0.7848,2509.9,2509.5,4.78173]
[1727810853499,4.78072,2510.1,2509.6,4.78153]
[1727810853660,0.7848,2510.2,2509.8,4.78117]
[1727810853866,4.78096,2510.0,2509.5,5.738086]
[1727810854093,4.78096,2510.0,2509.6,4.78163]
[1727810854398,4.78096,2510.0,2509.5,5.738166]
[1727810854612,9.56195,2510.0,2509.4,4.78199]
[1727810854903,0.7848,2510.2,2509.4,4.78193]
[1727810854904,4.78084,2510.1,2509.4,4.78193]
[1727810855090,4.78109,2509.9,2509.4,4.78193]
[1727810855661,4.78109,2509.9,2509.1,4.78245]
[1727810855662,4.78147,2509.7,2509.1,4.78245]
[1727810855861,4.78192,2509.5,2508.9,10.34754]
[1727810856062,4.78192,2509.5,2508.2,7.19685481]
[1727810856063,0.7848,2509.4,2508.7,10.34979]
[1727810856263,4.78231,2509.3,2508.8,1.034979]
[1727810856769,5.56681,2509.4,2508.8,1.034979]
[1727810857074,4.78242,2509.2,2508.8,1.034979]
[1727810857293,4.78245,2509.2,2508.8,1.034979]
[1727810857804,4.78227,2509.3,2508.8,1.034979]
[1727810858012,4.78227,2509.3,2508.6,4.78352]
[1727810858013,4.78269,2509.1,2508.6,4.78352]
[1727810858308,4.78269,2509.1,2508.5,5.54509]
[1727810858928,0.7823,2509.0,2508.5,4.78359]
[1727810859103,0.7823,2509.0,2508.6,4.78341]
[1727810859607,0.7823,2509.0,2508.5,4.78359]
[1727810859608,0.7823,2509.0,2508.5,9.56719]
[1727810859771,0.7823,2509.0,2508.6,4.78347]
[1727810860604,0.7823,2509.0,2508.7,4.78329]
[1727810860932,19.40660897,2509.3,2509.2,4.7824]
[1727810861215,0.7517,2509.6,2509.1,4.78257]
[1727810861457,5.53343,2509.6,2509.1,4.78257]
[1727810861564,4.78182,2509.5,2508.9,9.56564]
[1727810861769,4.78182,2509.5,2509.0,5.9125616]
[1727810861968,5.53343,2509.6,2508.8,6.515316]
[1727810861969,4.78205,2509.4,2508.8,6.515316]
[1727810862583,4.78205,2509.4,2508.9,4.78295]
[1727810863004,9.56417,2509.4,2508.9,4.78295]
[1727810863204,4.78205,2509.4,2508.9,4.78295]
[1727810863676,4.78232,2509.3,2508.8,1.732276]
[1727810863875,4.78205,2509.4,2508.9,4.78294]
[1727810865011,4.78205,2509.4,2508.9,9.56579]
[1727810865176,4.78205,2509.4,2508.9,4.78285]
[1727810866024,4.78205,2509.4,2508.9,4.78295]
[1727810866671,4.78205,2509.4,2508.5,0.7594]
[1727810866672,4.78241,2509.2,2508.7,4.78326]
[1727810866916,5.55703,2509.3,2508.8,4.78307]
[1727810867081,0.7748,2509.3,2508.9,4.78287]
[1727810867485,5.55706,2509.3,2508.8,4.78314]
[1727810867689,4.78251,2509.2,2508.7,4.78319]
[1727810867875,5.55706,2509.3,2508.8,4.78306]
[1727810868185,5.55706,2509.3,2508.7,4.78319]
[1727810868370,4.78253,2509.2,2508.7,9.56644]
[1727810868572,4.78253,2509.2,2508.7,4.78319]
[1727810868768,4.78253,2509.2,2508.8,4.78314]
[1727810869623,4.78253,2509.2,2508.7,9.56646]
[1727810869830,4.78253,2509.2,2508.7,4.78319]
[1727810869997,4.78253,2509.2,2508.7,9.56643]
[1727810870194,4.78253,2509.2,2508.7,4.78319]
[1727810870389,19.40660897,2509.5,2509.2,4.7824]
[1727810870623,19.40660897,2509.5,2509.1,4.78248]
[1727810870826,19.40660897,2509.5,2509.2,4.78225]
[1727810871891,19.40660897,2509.5,2509.1,4.78248]
[1727810872120,19.40660897,2509.5,2509.4,4.78201]
[1727810872305,19.40660897,2509.5,2509.4,5.260211]
[1727810873253,19.40660897,2509.8,2509.7,4.78144]
[1727810873461,1.6647598,2509.9,2509.8,4.78125]
[1727810873748,19.40660897,2510.4,2509.7,4.78144]
[1727810873968,19.40660897,2510.4,2510.1,4.78066]
[1727810874313,19.40660897,2510.4,2510.1,9.56132]
[1727810874656,19.40660897,2510.3,2510.2,4.78049]
[1727810874814,19.40660897,2510.6,2510.3,4.78019]
[1727810875014,19.40660897,2510.5,2510.3,4.78019]
[1727810875217,19.40660897,2510.5,2510.2,4.78049]
[1727810875459,19.40660897,2510.4,2510.3,4.78029]
[1727810876552,19.40660897,2510.8,2510.5,4.77974]
[1727810876912,19.40660897,2510.7,2510.6,4.77963]
[1727810877258,19.40660897,2510.7,2510.6,5.55723]
[1727810877768,19.40660897,2510.7,2510.4,4.78009]
[1727810877924,19.40660897,2510.7,2510.3,4.78019]
[1727810878558,19.40660897,2510.7,2510.5,4.77991]
[1727810879079,19.40660897,2510.7,2510.5,4.77989]
[1727810879366,19.40660897,2510.7,2510.4,4.78001]
[1727810880539,19.40660897,2510.7,2510.3,4.78015]
[1727810880780,19.40660897,2510.7,2510.4,4.78005]
[1727810881282,22.79635201,2510.7,2510.2,4.78048]
[1727810881576,4.78033,2510.3,2509.8,4.78121]
[1727810881872,4.78001,2510.5,2509.7,0.07967957]
[1727810882071,19.40660897,2510.4,2510.0,4.78075]
[1727810882575,19.40660897,2510.4,2510.0,4.78087]
[1727810882874,19.40660897,2510.4,2510.0,4.78076]
[1727810883546,19.40660897,2510.4,2509.8,4.78113]
[1727810883738,5.57672,2510.2,2509.8,4.78113]
[1727810883932,0.7962,2510.2,2509.6,4.78144]
[1727810884503,0.7962,2510.2,2509.6,9.56291]
[1727810884504,19.40660897,2510.1,2509.6,9.56291]
[1727810884698,24.18728897,2510.1,2509.6,4.78144]
[1727810885004,24.18728897,2510.1,2509.4,5.260081]
[1727810885005,19.40660897,2510.1,2509.7,4.78134]
[1727810885413,19.40660897,2510.1,2509.9,4.78104]
[1727810885892,19.40660897,2510.1,2509.9,9.56201]
[1727810886089,19.40660897,2510.1,2509.9,4.78097]
[1727810887035,19.40660897,2510.0,2509.9,4.78097]
[1727810887593,19.40660897,2510.0,2509.7,4.78131]
[1727810887931,19.40660897,2510.0,2509.8,4.78115]
[1727810890320,19.40660897,2510.0,2509.8,9.56229]
[1727810890506,19.40660897,2510.0,2509.7,4.78143]
[1727810890909,19.40660897,2510.0,2509.4,4.78186]
[1727810891108,0.7838,2509.8,2509.2,4.78224]
[1727810891305,0.7838,2509.5,2509.1,4.78248]
[1727810891507,0.7838,2509.5,2509.1,4.78244]
[1727810891747,0.7838,2509.5,2509.1,4.78242]
[1727810891953,0.7838,2509.5,2509.2,4.78229]
[1727810892155,4.78134,2509.8,2509.4,4.78193]
[1727810892156,0.7838,2509.8,2509.4,4.78193]
[1727810893015,0.7838,2509.8,2509.5,4.78169]
[1727810893212,0.7838,2509.8,2509.1,1.277142]
[1727810893457,5.56516,2509.8,2509.1,5.58137]
[1727810893624,5.56516,2509.8,2509.3,4.78219]
[1727810893625,4.78145,2509.7,2509.3,4.78219]
[1727810894013,4.78145,2509.7,2509.2,4.78232]
[1727810894242,0.7838,2509.8,2508.9,0.753]
[1727810894546,4.78172,2509.6,2509.1,4.78254]
[1727810895057,4.78159,2509.7,2509.3,4.78219]
[1727810895357,4.78159,2509.7,2509.1,4.78254]
[1727810895558,4.78159,2509.7,2508.9,5.53586]
[1727810895559,0.7775,2509.4,2509.0,4.78277]
[1727810895732,0.7775,2509.4,2509.1,4.78254]
[1727810896061,0.7775,2509.4,2509.2,4.78238]
[1727810896260,0.8314,2509.7,2509.2,5.738805]
[1727810896416,0.8314,2509.7,2509.4,4.78198]
[1727810897350,20.23800897,2509.7,2509.2,4.78221]
[1727810897756,20.23800897,2509.7,2509.4,4.782]
[1727810897912,20.23800897,2509.7,2509.5,4.78172]
[1727810898113,19.40660897,2509.7,2509.4,4.782]
[1727810898339,19.40660897,2509.7,2509.5,4.7818]
[1727810898541,19.40660897,2509.7,2509.4,4.782]
[1727810898743,19.40660897,2509.7,2509.5,4.78182]
[1727810898950,19.40660897,2509.7,2509.6,4.78163]
[1727810903135,24.18773897,2509.9,2509.5,4.78179]
[1727810903460,0.7871,2509.5,2509.1,4.78245]
[1727810903835,4.78232,2509.3,2508.9,4.78283]
[1727810904035,24.97553897,2509.5,2508.9,4.78283]
[1727810904240,24.97553897,2509.5,2509.1,4.78257]
[1727810904759,4.78205,2509.4,2508.9,10.043973]
[1727810904960,4.78205,2509.4,2508.9,4.78281]
[1727810905140,4.78205,2509.4,2509.0,4.78264]
[1727810906163,24.97556897,2509.5,2509.0,4.78264]
[1727810906566,29.75751897,2509.5,2509.0,4.78264]
[1727810906791,4.78204,2509.4,2509.0,4.78264]
[1727810907153,24.97556897,2509.5,2509.0,4.78264]
[1727810907359,24.97556897,2509.5,2509.1,4.78256]
[1727810907586,24.97556897,2509.5,2509.0,4.78264]
[1727810907587,29.75748897,2509.5,2509.0,4.78264]
[1727810907895,29.75748897,2509.5,2508.9,4.78293]
[1727810907896,4.78206,2509.4,2508.9,4.78293]
[1727810908269,4.78206,2509.4,2508.9,4.78285]
[1727810908666,28.22922072,2509.5,2508.7,4.78321]
[1727810908667,4.78243,2509.2,2508.8,4.78306]
[1727810908902,24.18903897,2509.2,2508.8,4.78306]
[1727810909110,0.7711,2509.1,2508.8,4.78306]
[1727810909479,7.98620536,2509.1,2508.6,4.78352]
[1727810909680,7.98620536,2509.1,2508.5,4.78359]
[1727810909681,24.05237768,2509.0,2508.5,4.78359]
[1727810910185,4.78324,2508.8,2508.3,9.56794]
[1727810910483,0.7751,2508.7,2508.3,4.78396]
[1727810910683,0.7751,2508.7,2508.5,4.78362]
[1727810910923,0.7751,2508.7,2508.5,9.56727]
[1727810911133,0.7751,2508.9,2508.7,4.78334]
[1727810911294,19.40660897,2509.0,2508.9,4.78297]
[1727810911828,0.7908,2509.3,2508.9,4.78297]
[1727810911981,0.8075,2509.5,2509.2,4.78224]
[1727810912629,0.8075,2509.5,2509.0,5.61572]
[1727810912825,0.8075,2509.5,2509.0,6.177292]
[1727810912826,5.58941,2509.5,2509.0,6.177292]
[1727810912987,0.8075,2509.5,2509.1,4.78249]
[1727810913582,5.58935,2509.5,2509.1,4.78249]
[1727810913778,5.58935,2509.5,2508.9,4.78289]
[1727810913779,9.42789871,2509.4,2508.9,4.78289]
[1727810913995,9.42789871,2509.4,2508.8,5.55452]
[1727810913996,4.78223,2509.3,2508.8,9.56609]
[1727810914270,4.78223,2509.3,2508.8,4.78302]
[1727810914435,4.78223,2509.3,2508.8,9.56608]
[1727810914636,4.21012871,2509.4,2508.8,4.78302]
[1727810914870,4.7823,2509.3,2508.8,9.56603]
[1727810915176,4.7823,2509.3,2508.8,4.78302]
[1727810915177,0.803,2509.1,2508.8,4.78302]
[1727810915384,0.803,2509.1,2508.9,4.78296]
[1727810915944,0.803,2509.1,2508.7,4.78333]
[1727810916287,0.803,2509.1,2508.7,4.78323]
[1727810916288,23.18703987,2509.1,2508.7,4.78323]
[1727810916493,23.18703987,2509.1,2508.4,5.41516871]
[1727810916494,19.40660897,2509.1,2508.4,5.41516871]
[1727810916786,19.40660897,2509.1,2508.8,4.78313]
[1727810917650,19.40660897,2509.1,2508.7,4.78324]
[1727810917884,19.40660897,2509.1,2508.8,4.78314]
[1727810918101,19.40660897,2509.1,2508.9,4.78293]
[1727810918958,19.40660897,2509.1,2508.8,4.78315]
[1727810919158,19.40660897,2509.1,2508.9,4.78285]
[1727810919359,19.40660897,2509.1,2509.0,4.78278]
[1727810920394,19.40660897,2509.5,2509.3,4.78214]
[1727810920681,19.40660897,2509.5,2509.3,4.78218]
[1727810921793,19.40660897,2509.5,2509.2,4.78237]
[1727810922366,19.40660897,2509.5,2509.0,6.49352]
[1727810922367,19.40660897,2509.5,2509.0,1.71079]
[1727810922558,19.40660897,2509.5,2508.6,9.42918871]
[1727810922559,0.8049,2509.2,2508.8,4.78312]
[1727810922786,0.8049,2509.2,2508.8,4.78307]
[1727810923172,0.8049,2509.2,2508.8,4.78303]
[1727810923982,20.21150897,2509.2,2508.8,4.78302]
[1727810924360,20.21150897,2509.2,2508.9,4.78293]
[1727810925588,20.21150897,2509.2,2508.8,4.78302]
[1727810926091,20.21150897,2509.2,2508.9,4.78289]
[1727810926588,20.21150897,2509.2,2508.7,4.78319]
[1727810926881,20.21150897,2509.2,2508.6,4.78352]
[1727810926882,4.78266,2509.1,2508.6,4.78352]
[1727810927302,32.85382714,2509.2,2508.7,4.78331]
[1727810927506,4.64576871,2508.8,2508.4,4.7838]
[1727810927707,4.64576871,2508.8,2508.4,4.78378]
[1727810927846,0.7582,2508.9,2508.4,4.78378]
[1727810928381,0.7582,2508.9,2508.5,4.78365]
[1727810929099,4.64576871,2508.8,2508.0,8.56845]
[1727810929293,24.73044584,2508.7,2508.2,4.78427]
[1727810929449,24.73044584,2508.7,2508.6,4.78354]
[1727810929450,19.40660897,2508.7,2508.6,4.78354]
[1727810929682,19.40660897,2508.8,2508.7,4.78335]
[1727810930982,19.40660897,2508.8,2508.7,5.56425]
[1727810932890,19.40660897,2509.3,2509.0,4.78276]
[1727810933892,19.40660897,2509.3,2508.8,4.78305]
[1727810934100,27.16298487,2509.3,2508.8,4.78305]
[1727810934248,27.16295487,2509.3,2508.8,4.78305]
[1727810934455,27.16295487,2509.3,2508.8,9.5661]
[1727810934774,24.18891897,2509.3,2508.8,4.78305]
[1727810934945,5.55191,2509.4,2508.9,4.78286]
[1727810935150,0.7698,2509.4,2509.0,4.78273]
[1727810935496,5.5519,2509.4,2508.9,4.78286]
[1727810935791,5.5519,2509.4,2509.0,4.78268]
[1727810935987,10.33404,2509.4,2508.9,4.78296]
[1727810936144,4.78229,2509.3,2508.8,9.56619]
[1727810937003,5.5519,2509.4,2508.9,4.78295]
[1727810937309,4.7823,2509.3,2508.8,9.56611]
[1727810937594,10.33406,2509.4,2508.9,4.78293]
[1727810937801,4.7823,2509.3,2508.8,4.78305]
[1727810938110,4.78261,2509.1,2508.5,0.7876]
[1727810938256,4.78261,2509.1,2508.5,4.78371]
[1727810938257,5.5329,2509.0,2508.5,4.78371]
[1727810939260,0.75,2509.0,2508.7,4.7832]
[1727810939498,20.15660897,2509.2,2508.6,4.78346]
[1727810939694,20.15660897,2509.2,2508.8,4.78315]
[1727810939879,20.15660897,2509.2,2508.9,4.78296]
[1727810940194,20.15660897,2509.2,2509.0,4.78268]
[1727810940516,19.40660897,2509.4,2509.3,4.78221]
[1727810943001,19.40660897,2509.8,2509.6,4.78159]
[1727810943213,19.40660897,2509.9,2509.6,9.5631]
[1727810943510,19.40660897,2509.9,2509.6,4.78154]
[1727810944709,19.40660897,2509.9,2509.5,4.78168]
[1727810944878,19.40660897,2509.9,2509.6,4.78163]
[1727810945398,19.40660897,2509.9,2509.5,4.78168]
[1727810945698,19.40660897,2509.9,2509.6,4.78162]
[1727810946193,19.40660897,2509.9,2509.4,0.7844]
[1727810946364,19.40660897,2509.9,2509.0,5.60233271]
[1727810946365,19.40660897,2509.9,2509.5,4.78182]
[1727810946697,26.68730687,2509.9,2509.4,4.78195]
[1727810947605,19.40660897,2509.8,2509.4,4.78195]
[1727810948726,24.18786897,2509.8,2509.4,4.78195]
[1727810949073,19.40660897,2509.8,2509.5,4.78176]
[1727810951816,19.40660897,2509.8,2509.3,4.78218]
[1727810951817,4.78153,2509.7,2509.3,4.78218]
[1727810952180,19.40660897,2509.8,2509.5,4.78167]
[1727810952428,19.40660897,2509.9,2509.8,4.78125]
[1727810952981,8.1841,2510.3,2509.6,4.7816]
[1727810952982,0.8041,2510.3,2509.9,4.78097]
[1727810953181,0.8041,2510.3,2510.0,0.478097]
[1727810953515,0.8041,2510.3,2510.0,5.258957]
[1727810953716,0.8041,2510.3,2510.0,4.78086]
[1727810954014,0.8041,2510.3,2510.0,9.56164]
[1727810954220,0.8041,2510.3,2510.0,4.78078]
[1727810955017,0.8041,2510.3,2510.0,9.56152]
[1727810955210,0.8041,2510.3,2510.1,0.956152]
[1727810955520,4.64576871,2510.2,2509.5,0.7526]
[1727810956034,0.8041,2510.3,2509.5,0.7526]
[1727810956035,0.8041,2510.3,2509.9,4.78102]
[1727810956187,5.5845,2510.3,2509.8,4.78123]
[1727810956381,19.40660897,2510.2,2509.7,4.78131]
[1727810956587,24.18718897,2510.2,2509.7,4.78131]
[1727810956790,28.96782897,2510.2,2509.6,4.78145]
[1727810957086,28.96782897,2510.2,2509.5,5.53426]
[1727810957087,4.78077,2510.1,2509.7,4.78144]
[1727810957732,24.05237768,2510.2,2509.7,9.56275]
[1727810957896,28.83295768,2510.2,2509.7,4.78131]
[1727810958084,9.42675871,2510.0,2509.5,4.78168]
[1727810958292,4.78077,2510.1,2509.6,4.78161]
[1727810958687,4.78108,2509.9,2509.5,4.78168]
[1727810958884,0.7949,2509.9,2509.6,4.78162]
[1727810960632,0.7949,2509.9,2509.7,4.78127]
[1727810960835,31.21343931,2510.2,2509.7,4.78127]
[1727810960836,5.57389,2510.1,2509.7,4.78127]
[1727810961133,9.01559677,2510.1,2509.7,4.78127]
[1727810961331,9.01559677,2510.1,2509.6,4.78162]
[1727810961490,9.01559677,2510.1,2509.6,4.78151]
[1727810961821,9.01559677,2510.1,2509.4,4.78188]
[1727810962021,4.78092,2510.0,2509.6,4.78155]
[1727810962622,19.40660897,2510.0,2509.6,4.78155]
[1727810963325,19.40660897,2510.0,2509.7,4.78141]
[1727810965731,24.18748897,2510.0,2509.6,4.78155]
[1727810966107,24.05237768,2510.0,2509.2,5.57769]
[1727810966418,24.05237768,2510.0,2509.4,4.78201]
[1727810966419,0.8097,2509.7,2509.4,4.78201]
[1727810967547,0.8097,2509.7,2509.4,9.56392]
[1727810967705,0.8097,2509.7,2509.5,4.78179]
[1727810967912,19.40660897,2509.9,2509.7,4.78136]
[1727810969192,19.40660897,2509.9,2509.6,4.78161]
[1727810970502,19.40660897,2509.9,2509.2,5.57775]
[1727810970704,19.40660897,2509.9,2509.6,4.78156]
[1727810971037,19.40660897,2509.9,2509.7,4.78144]
[1727810971236,19.40660897,2509.9,2509.6,4.78154]
[1727810971654,19.40660897,2509.9,2509.6,9.56309]
[1727810971798,19.40660897,2509.9,2509.6,10.519399]
[1727810971998,19.40660897,2509.9,2509.7,4.78132]
[1727810972341,19.40660897,2509.9,2509.6,5.737829]
[1727810972507,19.40660897,2509.9,2509.4,9.56372]
[1727810972712,19.40660897,2509.9,2509.6,4.78151]
[1727810973337,19.40660897,2509.9,2509.7,4.78134]
[1727810973696,19.40660897,2509.9,2509.8,4.78125]
[1727810975114,19.40660897,2510.4,2510.0,4.78077]
[1727810975404,19.40660897,2510.4,2510.1,4.78063]
[1727810976541,19.40660897,2510.4,2510.1,5.73677]
[1727810980644,19.40660897,2510.4,2510.1,10.51733]
[1727810980850,19.40660897,2510.4,2510.1,5.7367]
[1727810981653,19.40660897,2510.4,2510.0,4.78086]
[1727810981856,28.83262768,2510.4,2509.8,4.78117]
[1727810982178,4.78039,2510.3,2509.8,4.78117]
[1727810982382,28.83262768,2510.4,2509.9,4.78087]
[1727810982584,19.40660897,2510.4,2510.0,5.258847]
[1727810984238,24.18672897,2510.4,2510.0,5.258847]
[1727810984441,24.18672897,2510.4,2510.0,4.78076]
[1727810985790,19.40660897,2510.4,2510.0,4.78076]
[1727810986281,19.40660897,2510.3,2510.0,4.78076]
[1727810986651,19.40660897,2510.3,2509.9,4.78087]
[1727810986652,19.40660897,2510.3,2510.1,4.78067]
[1727810988065,19.40660897,2510.3,2509.9,4.78087]
[1727810988385,19.40660897,2510.3,2510.0,4.78079]
[1727810988859,19.40660897,2510.3,2510.1,4.78066]
[1727810990355,19.40660897,2510.3,2509.8,4.78114]
[1727810990546,24.05237768,2510.3,2509.9,4.78089]
[1727810990761,19.40660897,2510.3,2510.0,4.78071]
[1727810991793,19.40660897,2510.3,2510.1,4.78057]
[1727810991966,19.40660897,2510.2,2510.1,4.78057]
[1727810998003,19.40660897,2510.4,2510.1,4.78057]
[1727810998491,19.40660897,2510.4,2510.0,4.78071]
[1727810998679,19.40660897,2510.4,2510.0,9.56148]
[1727810999304,19.40660897,2510.4,2510.1,4.78062]
[1727811000466,19.40660897,2510.4,2509.8,4.78115]
[1727811000467,0.7822,2510.1,2509.8,4.78115]
[1727811001021,0.7822,2510.1,2509.9,4.78098]
[1727811001368,0.7822,2510.1,2509.7,4.78133]
[1727811001583,9.42672871,2510.0,2509.6,4.78152]
[1727811001782,24.18774897,2509.9,2509.5,4.78181]
[1727811002201,19.40660897,2509.9,2509.5,4.78181]
[1727811002526,20.74540897,2509.8,2509.0,5.28160963]
[1727811002677,10.20301871,2509.6,2509.0,4.78261]
[1727811002878,0.7756,2509.6,2509.2,4.78239]
[1727811003190,5.55727,2509.6,2509.2,4.78239]
[1727811003986,0.7756,2509.6,2509.2,4.78231]
[1727811004558,4.78193,2509.5,2509.0,9.56535]
[1727811004685,4.78193,2509.5,2508.6,7.78342]
[1727811004686,4.64576871,2509.3,2508.8,4.783]
[1727811004886,4.64576871,2509.3,2508.2,10.81542915]
[1727811004887,0.8007,2508.7,2508.2,10.81542915]
[1727811005089,0.8007,2508.7,2508.2,4.7843]
[1727811005090,4.64576871,2508.5,2508.2,4.7843]
[1727811005295,4.64576871,2508.5,2508.0,4.78458]
[1727811005493,19.40660897,2508.6,2508.2,4.78418]
[1727811005728,19.40660897,2508.6,2508.3,4.784]
[1727811005874,4.78377,2508.5,2507.8,5.5503]
[1727811006072,24.05237768,2508.6,2508.0,4.78455]
[1727811006073,24.05237768,2508.4,2508.0,4.78455]
[1727811006288,24.05237768,2508.4,2508.1,4.78449]
[1727811006582,24.05237768,2508.4,2508.0,4.78455]
[1727811007076,19.40660897,2508.4,2508.0,4.78455]
[1727811007589,19.40660897,2508.4,2508.2,9.56849]
[1727811007790,19.40660897,2508.4,2508.3,4.78411]
[1727811007993,19.40660897,2508.4,2508.3,5.59811]
[1727811008206,19.40660897,2508.4,2508.2,4.7842]
[1727811008429,20.21790897,2508.4,2508.0,4.78456]
[1727811008739,20.21790897,2508.4,2507.8,5.60055]
[1727811008740,19.40660897,2508.3,2507.8,5.60055]
[1727811008909,19.40660897,2508.3,2508.1,4.78447]
[1727811009340,19.40660897,2508.3,2508.1,9.56894]
[1727811009637,20.19450897,2508.3,2508.0,4.78466]
[1727811009843,20.19450897,2508.3,2508.1,4.78445]
[1727811010137,20.19450897,2508.3,2508.1,4.78438]
[1727811010447,20.19450897,2508.3,2507.9,4.78472]
[1727811010611,20.19450897,2508.3,2508.0,4.78462]
[1727811010933,20.19450897,2508.3,2507.9,4.78486]
[1727811011299,28.41945874,2508.3,2507.9,4.78486]
[1727811011496,23.63533874,2508.3,2507.9,4.78486]
[1727811012299,23.63533874,2508.3,2507.9,9.56963]
[1727811012501,23.63533874,2508.3,2507.9,9.56954]
[1727811012722,19.40660897,2508.2,2508.0,4.78457]
[1727811013359,0.7544,2507.8,2507.3,4.78589]
[1727811013510,4.64576871,2507.5,2507.1,4.78629]
[1727811013846,0.8309,2507.4,2507.1,4.78629]
[1727811014048,0.8309,2507.4,2507.3,4.78602]
[1727811014216,0.8309,2507.6,2507.2,4.78618]
[1727811014547,0.8309,2507.6,2507.2,9.5723]
[1727811014699,0.8309,2507.6,2507.2,9.57224]
[1727811014897,4.78565,2507.5,2507.0,4.78654]
[1727811015134,19.40660897,2507.4,2507.0,9.57301]
[1727811015319,4.64576871,2507.1,2506.7,4.78703]
[1727811015523,4.64576871,2506.9,2506.5,4.78754]
[1727811015714,4.64576871,2506.7,2506.4,4.78758]
[1727811015930,4.64576871,2506.7,2506.4,4.78757]
[1727811016264,4.64576871,2506.5,2506.1,4.78818]
[1727811016468,19.40660897,2506.4,2506.1,4.78818]
[1727811016629,5.43726871,2506.3,2505.5,0.826]
[1727811016954,4.78741,2506.6,2506.1,4.78831]
[1727811016955,19.40660897,2506.2,2506.1,4.78831]
[1727811017326,19.40660897,2506.2,2505.5,5.8632174]
[1727811017327,19.40660897,2506.2,2505.8,4.78876]
[1727811017523,19.40660897,2506.2,2506.0,4.78848]
[1727811018167,19.40660897,2506.2,2505.8,4.78876]
[1727811018375,19.40660897,2506.2,2505.9,4.78866]
[1727811018540,19.40660897,2506.2,2505.8,4.78876]
[1727811018862,19.40660897,2506.2,2505.2,0.45926375]
[1727811018863,29.62419768,2506.1,2505.4,4.78952]
[1727811019077,24.19512897,2506.0,2505.4,9.57906]
[1727811019392,10.21758871,2506.1,2505.4,9.57906]
[1727811019393,24.05237768,2505.9,2505.4,4.78952]
[1727811019528,0.7834,2505.7,2505.0,0.8024]
[1727811019728,0.7834,2505.7,2505.2,9.57989]
[1727811020053,0.7834,2505.7,2505.2,4.78992]
[1727811020255,5.42916871,2505.7,2505.2,4.78992]
[1727811020440,4.78927,2505.6,2505.0,9.58058]
[1727811020639,0.7834,2505.4,2504.9,4.7906]
[1727811020859,19.40660897,2505.3,2504.8,0.45926375]
[1727811021047,19.40660897,2505.3,2505.2,4.79003]
[1727811022970,19.40660897,2505.8,2505.6,4.78923]
[1727811023269,0.7772,2506.1,2505.6,4.78923]
[1727811023270,19.40660897,2505.7,2505.6,4.78927]
[1727811023587,19.40660897,2505.7,2505.5,4.78944]
[1727811023873,19.40660897,2505.7,2505.3,4.78973]
[1727811024031,0.7772,2505.6,2505.1,4.79013]